{"text_format":"3","workbook":"xlsx","n_sheets":9,"sheets":["Accueil","Bet clic","Bwin","Winamax","netbet","pmu","comparateur site","domicile","exterieur"],"not_rendered":{"macros":1},"read":"whole","date_system":"1900"}

{"sheet":"Accueil","index":0,"n_rows":1,"n_cols":16,"rows_kept":1}
[{"$nulls":9},"DOMICILE","EXTERIEUR","NATURE DU PARI","PARI","COTE","PROBA","SITE"]

{"sheet":"Bet clic","index":1,"n_rows":18,"n_cols":12,"rows_kept":18,"merged":[[16,0,16,11]]}
{"$rows_empty":16}
["NOMBRE BUTS TOTAL "]
["- de 0,5","- de 1,5","- de 2,5","- de 3,5","- de 4,5","- de 5,5","+ de 0,5","+ de 1,5","+ de 2,5","+ de 3,5","+ de 4,5","+ de 5,5"]

{"sheet":"Bwin","index":2,"n_rows":18,"n_cols":12,"rows_kept":18,"merged":[[16,0,16,11]]}
{"$rows_empty":16}
["NOMBRE BUTS TOTAL "]
["- de 0,5","- de 1,5","- de 2,5","- de 3,5","- de 4,5","- de 5,5","+ de 0,5","+ de 1,5","+ de 2,5","+ de 3,5","+ de 4,5","+ de 5,5"]

{"sheet":"Winamax","index":3,"n_rows":18,"n_cols":12,"rows_kept":18,"merged":[[16,0,16,11]]}
{"$rows_empty":16}
["NOMBRE BUTS TOTAL "]
["- de 0,5","- de 1,5","- de 2,5","- de 3,5","- de 4,5","- de 5,5","+ de 0,5","+ de 1,5","+ de 2,5","+ de 3,5","+ de 4,5","+ de 5,5"]

{"sheet":"netbet","index":4,"n_rows":18,"n_cols":12,"rows_kept":18,"merged":[[16,0,16,11]]}
{"$rows_empty":16}
["NOMBRE BUTS TOTAL "]
["- de 0,5","- de 1,5","- de 2,5","- de 3,5","- de 4,5","- de 5,5","+ de 0,5","+ de 1,5","+ de 2,5","+ de 3,5","+ de 4,5","+ de 5,5"]

{"sheet":"pmu","index":5,"n_rows":18,"n_cols":12,"rows_kept":18,"merged":[[16,0,16,11]]}
{"$rows_empty":16}
["NOMBRE BUTS TOTAL "]
["- de 0,5","- de 1,5","- de 2,5","- de 3,5","- de 4,5","- de 5,5","+ de 0,5","+ de 1,5","+ de 2,5","+ de 3,5","+ de 4,5","+ de 5,5"]

{"sheet":"comparateur site","index":6,"n_rows":19,"n_cols":13,"rows_kept":19,"merged":[[11,1,11,12]]}
{"$rows_empty":11}
[null,"NOMBRE BUTS TOTAL "]
["code groupe","- de 0,5","- de 1,5","- de 2,5","- de 3,5","- de 4,5","- de 5,5","+ de 0,5","+ de 1,5","+ de 2,5","+ de 3,5","+ de 4,5","+ de 5,5"]
["bet clic",{"$f":"IF(B19='Bet clic'!A19,'comparateur site'!$A$14,'Bet clic'!A19)","v":"bet clic"},{"$f":"IF(C19='Bet clic'!B19,'comparateur site'!$A$14,'Bet clic'!B19)","v":"bet clic"},{"$f":"IF(D19='Bet clic'!C19,'comparateur site'!$A$14,'Bet clic'!C19)","v":"bet clic"},{"$f":"IF(E19='Bet clic'!D19,'comparateur site'!$A$14,'Bet clic'!D19)","v":"bet clic"},{"$f":"IF(F19='Bet clic'!E19,'comparateur site'!$A$14,'Bet clic'!E19)","v":"bet clic"},{"$f":"IF(G19='Bet clic'!F19,'comparateur site'!$A$14,'Bet clic'!F19)","v":"bet clic"},{"$f":"IF(H19='Bet clic'!G19,'comparateur site'!$A$14,'Bet clic'!G19)","v":"bet clic"},{"$f":"IF(I19='Bet clic'!H19,'comparateur site'!$A$14,'Bet clic'!H19)","v":"bet clic"},{"$f":"IF(J19='Bet clic'!I19,'comparateur site'!$A$14,'Bet clic'!I19)","v":"bet clic"},{"$f":"IF(K19='Bet clic'!J19,'comparateur site'!$A$14,'Bet clic'!J19)","v":"bet clic"},{"$f":"IF(L19='Bet clic'!K19,'comparateur site'!$A$14,'Bet clic'!K19)","v":"bet clic"},{"$f":"IF(M19='Bet clic'!L19,'comparateur site'!$A$14,'Bet clic'!L19)","v":"bet clic"}]
["Bwin",{"$f":"IF(B19=Bwin!A19,'comparateur site'!$A$15,Bwin!A19)","v":"Bwin"},{"$f":"IF(C19=Bwin!B19,'comparateur site'!$A$15,Bwin!B19)","v":"Bwin"},{"$f":"IF(D19=Bwin!C19,'comparateur site'!$A$15,Bwin!C19)","v":"Bwin"},{"$f":"IF(E19=Bwin!D19,'comparateur site'!$A$15,Bwin!D19)","v":"Bwin"},{"$f":"IF(F19=Bwin!E19,'comparateur site'!$A$15,Bwin!E19)","v":"Bwin"},{"$f":"IF(G19=Bwin!F19,'comparateur site'!$A$15,Bwin!F19)","v":"Bwin"},{"$f":"IF(H19=Bwin!G19,'comparateur site'!$A$15,Bwin!G19)","v":"Bwin"},{"$f":"IF(I19=Bwin!H19,'comparateur site'!$A$15,Bwin!H19)","v":"Bwin"},{"$f":"IF(J19=Bwin!I19,'comparateur site'!$A$15,Bwin!I19)","v":"Bwin"},{"$f":"IF(K19=Bwin!J19,'comparateur site'!$A$15,Bwin!J19)","v":"Bwin"},{"$f":"IF(L19=Bwin!K19,'comparateur site'!$A$15,Bwin!K19)","v":"Bwin"},{"$f":"IF(M19=Bwin!L19,'comparateur site'!$A$15,Bwin!L19)","v":"Bwin"}]
["Winamax",{"$f":"IF(B19=Winamax!A19,'comparateur site'!$A$16,Winamax!A19)","v":"Winamax"},{"$f":"IF(C19=Winamax!B19,'comparateur site'!$A$16,Winamax!B19)","v":"Winamax"},{"$f":"IF(D19=Winamax!C19,'comparateur site'!$A$16,Winamax!C19)","v":"Winamax"},{"$f":"IF(E19=Winamax!D19,'comparateur site'!$A$16,Winamax!D19)","v":"Winamax"},{"$f":"IF(F19=Winamax!E19,'comparateur site'!$A$16,Winamax!E19)","v":"Winamax"},{"$f":"IF(G19=Winamax!F19,'comparateur site'!$A$16,Winamax!F19)","v":"Winamax"},{"$f":"IF(H19=Winamax!G19,'comparateur site'!$A$16,Winamax!G19)","v":"Winamax"},{"$f":"IF(I19=Winamax!H19,'comparateur site'!$A$16,Winamax!H19)","v":"Winamax"},{"$f":"IF(J19=Winamax!I19,'comparateur site'!$A$16,Winamax!I19)","v":"Winamax"},{"$f":"IF(K19=Winamax!J19,'comparateur site'!$A$16,Winamax!J19)","v":"Winamax"},{"$f":"IF(L19=Winamax!K19,'comparateur site'!$A$16,Winamax!K19)","v":"Winamax"},{"$f":"IF(M19=Winamax!L19,'comparateur site'!$A$16,Winamax!L19)","v":"Winamax"}]
["Netbet",{"$f":"IF(B19=netbet!A19,'comparateur site'!$A$17,netbet!A19)","v":"Netbet"},{"$f":"IF(C19=netbet!B19,'comparateur site'!$A$17,netbet!B19)","v":"Netbet"},{"$f":"IF(D19=netbet!C19,'comparateur site'!$A$17,netbet!C19)","v":"Netbet"},{"$f":"IF(E19=netbet!D19,'comparateur site'!$A$17,netbet!D19)","v":"Netbet"},{"$f":"IF(F19=netbet!E19,'comparateur site'!$A$17,netbet!E19)","v":"Netbet"},{"$f":"IF(G19=netbet!F19,'comparateur site'!$A$17,netbet!F19)","v":"Netbet"},{"$f":"IF(H19=netbet!G19,'comparateur site'!$A$17,netbet!G19)","v":"Netbet"},{"$f":"IF(I19=netbet!H19,'comparateur site'!$A$17,netbet!H19)","v":"Netbet"},{"$f":"IF(J19=netbet!I19,'comparateur site'!$A$17,netbet!I19)","v":"Netbet"},{"$f":"IF(K19=netbet!J19,'comparateur site'!$A$17,netbet!J19)","v":"Netbet"},{"$f":"IF(L19=netbet!K19,'comparateur site'!$A$17,netbet!K19)","v":"Netbet"},{"$f":"IF(M19=netbet!L19,'comparateur site'!$A$17,netbet!L19)","v":"Netbet"}]
["Pmu",{"$f":"IF(B19=pmu!A19,'comparateur site'!$A$18,pmu!A19)","v":"Pmu"},{"$f":"IF(C19=pmu!B19,'comparateur site'!$A$18,pmu!B19)","v":"Pmu"},{"$f":"IF(D19=pmu!C19,'comparateur site'!$A$18,pmu!C19)","v":"Pmu"},{"$f":"IF(E19=pmu!D19,'comparateur site'!$A$18,pmu!D19)","v":"Pmu"},{"$f":"IF(F19=pmu!E19,'comparateur site'!$A$18,pmu!E19)","v":"Pmu"},{"$f":"IF(G19=pmu!F19,'comparateur site'!$A$18,pmu!F19)","v":"Pmu"},{"$f":"IF(H19=pmu!G19,'comparateur site'!$A$18,pmu!G19)","v":"Pmu"},{"$f":"IF(I19=pmu!H19,'comparateur site'!$A$18,pmu!H19)","v":"Pmu"},{"$f":"IF(J19=pmu!I19,'comparateur site'!$A$18,pmu!I19)","v":"Pmu"},{"$f":"IF(K19=pmu!J19,'comparateur site'!$A$18,pmu!J19)","v":"Pmu"},{"$f":"IF(L19=pmu!K19,'comparateur site'!$A$18,pmu!K19)","v":"Pmu"},{"$f":"IF(M19=pmu!L19,'comparateur site'!$A$18,pmu!L19)","v":"Pmu"}]
["Cotes",{"$f":"IF(AND('Bet clic'!A19>=Bwin!A19,'Bet clic'!A19>=Winamax!A19,'Bet clic'!A19>=netbet!A19,'Bet clic'!A19>=pmu!A19),'Bet clic'!A19,IF(AND(Bwin!A19>='Bet clic'!A19,Bwin!A19>=Winamax!A19,Bwin!A19>=netbet!A19,Bwin!A19>=pmu!A19),Bwin!A19,IF(AND(Winamax!A19>='Bet clic'!A19,Winamax!A19>=Bwin!A19,Winamax!A19>=netbet!A19,Winamax!A19>=pmu!A19),Winamax!A19,IF(AND(netbet!A19>='Bet clic'!A19,netbet!A19>=Bwin!A19,netbet!A19>=Winamax!A19,netbet!A19>=pmu!A19),netbet!A19,pmu!A19))))","v":{"v":0,"d":"0.00"}},{"$f":"IF(AND('Bet clic'!B19>=Bwin!B19,'Bet clic'!B19>=Winamax!B19,'Bet clic'!B19>=netbet!B19,'Bet clic'!B19>=pmu!B19),'Bet clic'!B19,IF(AND(Bwin!B19>='Bet clic'!B19,Bwin!B19>=Winamax!B19,Bwin!B19>=netbet!B19,Bwin!B19>=pmu!B19),Bwin!B19,IF(AND(Winamax!B19>='Bet clic'!B19,Winamax!B19>=Bwin!B19,Winamax!B19>=netbet!B19,Winamax!B19>=pmu!B19),Winamax!B19,IF(AND(netbet!B19>='Bet clic'!B19,netbet!B19>=Bwin!B19,netbet!B19>=Winamax!B19,netbet!B19>=pmu!B19),netbet!B19,pmu!B19))))","v":{"v":0,"d":"0.00"}},{"$f":"IF(AND('Bet clic'!C19>=Bwin!C19,'Bet clic'!C19>=Winamax!C19,'Bet clic'!C19>=netbet!C19,'Bet clic'!C19>=pmu!C19),'Bet clic'!C19,IF(AND(Bwin!C19>='Bet clic'!C19,Bwin!C19>=Winamax!C19,Bwin!C19>=netbet!C19,Bwin!C19>=pmu!C19),Bwin!C19,IF(AND(Winamax!C19>='Bet clic'!C19,Winamax!C19>=Bwin!C19,Winamax!C19>=netbet!C19,Winamax!C19>=pmu!C19),Winamax!C19,IF(AND(netbet!C19>='Bet clic'!C19,netbet!C19>=Bwin!C19,netbet!C19>=Winamax!C19,netbet!C19>=pmu!C19),netbet!C19,pmu!C19))))","v":{"v":0,"d":"0.00"}},{"$f":"IF(AND('Bet clic'!D19>=Bwin!D19,'Bet clic'!D19>=Winamax!D19,'Bet clic'!D19>=netbet!D19,'Bet clic'!D19>=pmu!D19),'Bet clic'!D19,IF(AND(Bwin!D19>='Bet clic'!D19,Bwin!D19>=Winamax!D19,Bwin!D19>=netbet!D19,Bwin!D19>=pmu!D19),Bwin!D19,IF(AND(Winamax!D19>='Bet clic'!D19,Winamax!D19>=Bwin!D19,Winamax!D19>=netbet!D19,Winamax!D19>=pmu!D19),Winamax!D19,IF(AND(netbet!D19>='Bet clic'!D19,netbet!D19>=Bwin!D19,netbet!D19>=Winamax!D19,netbet!D19>=pmu!D19),netbet!D19,pmu!D19))))","v":{"v":0,"d":"0.00"}},{"$f":"IF(AND('Bet clic'!E19>=Bwin!E19,'Bet clic'!E19>=Winamax!E19,'Bet clic'!E19>=netbet!E19,'Bet clic'!E19>=pmu!E19),'Bet clic'!E19,IF(AND(Bwin!E19>='Bet clic'!E19,Bwin!E19>=Winamax!E19,Bwin!E19>=netbet!E19,Bwin!E19>=pmu!E19),Bwin!E19,IF(AND(Winamax!E19>='Bet clic'!E19,Winamax!E19>=Bwin!E19,Winamax!E19>=netbet!E19,Winamax!E19>=pmu!E19),Winamax!E19,IF(AND(netbet!E19>='Bet clic'!E19,netbet!E19>=Bwin!E19,netbet!E19>=Winamax!E19,netbet!E19>=pmu!E19),netbet!E19,pmu!E19))))","v":{"v":0,"d":"0.00"}},{"$f":"IF(AND('Bet clic'!F19>=Bwin!F19,'Bet clic'!F19>=Winamax!F19,'Bet clic'!F19>=netbet!F19,'Bet clic'!F19>=pmu!F19),'Bet clic'!F19,IF(AND(Bwin!F19>='Bet clic'!F19,Bwin!F19>=Winamax!F19,Bwin!F19>=netbet!F19,Bwin!F19>=pmu!F19),Bwin!F19,IF(AND(Winamax!F19>='Bet clic'!F19,Winamax!F19>=Bwin!F19,Winamax!F19>=netbet!F19,Winamax!F19>=pmu!F19),Winamax!F19,IF(AND(netbet!F19>='Bet clic'!F19,netbet!F19>=Bwin!F19,netbet!F19>=Winamax!F19,netbet!F19>=pmu!F19),netbet!F19,pmu!F19))))","v":{"v":0,"d":"0.00"}},{"$f":"IF(AND('Bet clic'!G19>=Bwin!G19,'Bet clic'!G19>=Winamax!G19,'Bet clic'!G19>=netbet!G19,'Bet clic'!G19>=pmu!G19),'Bet clic'!G19,IF(AND(Bwin!G19>='Bet clic'!G19,Bwin!G19>=Winamax!G19,Bwin!G19>=netbet!G19,Bwin!G19>=pmu!G19),Bwin!G19,IF(AND(Winamax!G19>='Bet clic'!G19,Winamax!G19>=Bwin!G19,Winamax!G19>=netbet!G19,Winamax!G19>=pmu!G19),Winamax!G19,IF(AND(netbet!G19>='Bet clic'!G19,netbet!G19>=Bwin!G19,netbet!G19>=Winamax!G19,netbet!G19>=pmu!G19),netbet!G19,pmu!G19))))","v":{"v":0,"d":"0.00"}},{"$f":"IF(AND('Bet clic'!H19>=Bwin!H19,'Bet clic'!H19>=Winamax!H19,'Bet clic'!H19>=netbet!H19,'Bet clic'!H19>=pmu!H19),'Bet clic'!H19,IF(AND(Bwin!H19>='Bet clic'!H19,Bwin!H19>=Winamax!H19,Bwin!H19>=netbet!H19,Bwin!H19>=pmu!H19),Bwin!H19,IF(AND(Winamax!H19>='Bet clic'!H19,Winamax!H19>=Bwin!H19,Winamax!H19>=netbet!H19,Winamax!H19>=pmu!H19),Winamax!H19,IF(AND(netbet!H19>='Bet clic'!H19,netbet!H19>=Bwin!H19,netbet!H19>=Winamax!H19,netbet!H19>=pmu!H19),netbet!H19,pmu!H19))))","v":{"v":0,"d":"0.00"}},{"$f":"IF(AND('Bet clic'!I19>=Bwin!I19,'Bet clic'!I19>=Winamax!I19,'Bet clic'!I19>=netbet!I19,'Bet clic'!I19>=pmu!I19),'Bet clic'!I19,IF(AND(Bwin!I19>='Bet clic'!I19,Bwin!I19>=Winamax!I19,Bwin!I19>=netbet!I19,Bwin!I19>=pmu!I19),Bwin!I19,IF(AND(Winamax!I19>='Bet clic'!I19,Winamax!I19>=Bwin!I19,Winamax!I19>=netbet!I19,Winamax!I19>=pmu!I19),Winamax!I19,IF(AND(netbet!I19>='Bet clic'!I19,netbet!I19>=Bwin!I19,netbet!I19>=Winamax!I19,netbet!I19>=pmu!I19),netbet!I19,pmu!I19))))","v":{"v":0,"d":"0.00"}},{"$f":"IF(AND('Bet clic'!J19>=Bwin!J19,'Bet clic'!J19>=Winamax!J19,'Bet clic'!J19>=netbet!J19,'Bet clic'!J19>=pmu!J19),'Bet clic'!J19,IF(AND(Bwin!J19>='Bet clic'!J19,Bwin!J19>=Winamax!J19,Bwin!J19>=netbet!J19,Bwin!J19>=pmu!J19),Bwin!J19,IF(AND(Winamax!J19>='Bet clic'!J19,Winamax!J19>=Bwin!J19,Winamax!J19>=netbet!J19,Winamax!J19>=pmu!J19),Winamax!J19,IF(AND(netbet!J19>='Bet clic'!J19,netbet!J19>=Bwin!J19,netbet!J19>=Winamax!J19,netbet!J19>=pmu!J19),netbet!J19,pmu!J19))))","v":{"v":0,"d":"0.00"}},{"$f":"IF(AND('Bet clic'!K19>=Bwin!K19,'Bet clic'!K19>=Winamax!K19,'Bet clic'!K19>=netbet!K19,'Bet clic'!K19>=pmu!K19),'Bet clic'!K19,IF(AND(Bwin!K19>='Bet clic'!K19,Bwin!K19>=Winamax!K19,Bwin!K19>=netbet!K19,Bwin!K19>=pmu!K19),Bwin!K19,IF(AND(Winamax!K19>='Bet clic'!K19,Winamax!K19>=Bwin!K19,Winamax!K19>=netbet!K19,Winamax!K19>=pmu!K19),Winamax!K19,IF(AND(netbet!K19>='Bet clic'!K19,netbet!K19>=Bwin!K19,netbet!K19>=Winamax!K19,netbet!K19>=pmu!K19),netbet!K19,pmu!K19))))","v":{"v":0,"d":"0.00"}},{"$f":"IF(AND('Bet clic'!L19>=Bwin!L19,'Bet clic'!L19>=Winamax!L19,'Bet clic'!L19>=netbet!L19,'Bet clic'!L19>=pmu!L19),'Bet clic'!L19,IF(AND(Bwin!L19>='Bet clic'!L19,Bwin!L19>=Winamax!L19,Bwin!L19>=netbet!L19,Bwin!L19>=pmu!L19),Bwin!L19,IF(AND(Winamax!L19>='Bet clic'!L19,Winamax!L19>=Bwin!L19,Winamax!L19>=netbet!L19,Winamax!L19>=pmu!L19),Winamax!L19,IF(AND(netbet!L19>='Bet clic'!L19,netbet!L19>=Bwin!L19,netbet!L19>=Winamax!L19,netbet!L19>=pmu!L19),netbet!L19,pmu!L19))))","v":{"v":0,"d":"0.00"}}]

{"sheet":"domicile","index":7,"n_rows":0,"n_cols":0,"rows_kept":0}

{"sheet":"exterieur","index":8,"n_rows":0,"n_cols":0,"rows_kept":0}